[Event "Live Chess"]
[Site "Chess.com"]
[Date "2023.05.20"]
[Round "-"]
[White "AzizChess2019"]
[Black "DmitryVasliev"]
[Result "1-0"]
[WhiteElo "1730"]
[BlackElo "1677"]
[TimeControl "300"]
[EndTime "14:15:12 PDT"]
[Termination "AzizChess2019 won on time"]

1. e4 {[%clk 0:04:56.6]} 1... d6 {[%clk 0:04:59.2]} 2. d4 {[%clk 0:04:55.4]}
2... c6 {[%clk 0:04:58.7]} 3. Bd3 {[%clk 0:04:54.8]} 3... g6 {[%clk 0:04:57.9]}
4. Nf3 {[%clk 0:04:54.4]} 4... Bg7 {[%clk 0:04:57.3]} 5. c3 {[%clk 0:04:54]}
5... Nd7 {[%clk 0:04:56.2]} 6. O-O {[%clk 0:04:53.5]} 6... h6 {[%clk 0:04:54.7]}
7. Re1 {[%clk 0:04:53.1]} 7... e5 {[%clk 0:04:53.7]} 8. dxe5 {[%clk 0:04:51.7]}
8... dxe5 {[%clk 0:04:52.4]} 9. Qb3 {[%clk 0:04:50.7]} 9... Qe7 {[%clk
0:04:50.1]} 10. Be3 {[%clk 0:04:48.5]} 10... b6 {[%clk 0:04:44.7]} 11. Nbd2
{[%clk 0:04:48.1]} 11... Ngf6 {[%clk 0:04:34.3]} 12. Rad1 {[%clk 0:04:44.7]}
12... Ng4 {[%clk 0:04:32.1]} 13. h3 {[%clk 0:04:41.4]} 13... Nxe3 {[%clk
0:04:30.4]} 14. Rxe3 {[%clk 0:04:41.3]} 14... Nc5 {[%clk 0:04:26.5]} 15. Qc2
{[%clk 0:04:40.2]} 15... Nxd3 {[%clk 0:04:19.5]} 16. Qxd3 {[%clk 0:04:40.1]}
16... O-O {[%clk 0:03:57.8]} 17. Nc4 {[%clk 0:04:36.6]} 17... Be6 {[%clk
0:03:45.9]} 18. b3 {[%clk 0:04:31.3]} 18... Rfd8 {[%clk 0:03:37.3]} 19. Qe2
{[%clk 0:04:22.3]} 19... Rxd1+ {[%clk 0:03:33.5]} 20. Qxd1 {[%clk 0:04:22.2]}
20... Bxc4 {[%clk 0:03:20.7]} 21. bxc4 {[%clk 0:04:22.1]} 21... Qe6 {[%clk
0:03:11.7]} 22. Qd3 {[%clk 0:04:10]} 22... Bf8 {[%clk 0:03:09.1]} 23. Re2 {[%clk
0:04:07.7]} 23... Be7 {[%clk 0:03:03.1]} 24. Nd2 {[%clk 0:03:40.7]} 24... Kg7
{[%clk 0:02:56.3]} 25. Qc2 {[%clk 0:03:36]} 25... Rd8 {[%clk 0:02:43.5]} 26. Re3
{[%clk 0:03:29.5]} 26... Qd7 {[%clk 0:02:30.9]} 27. Re2 {[%clk 0:03:08.8]} 27...
Qd3 {[%clk 0:02:08.1]} 28. Nf3 {[%clk 0:02:52.5]} 28... f6 {[%clk 0:01:53.7]}
29. Kh2 {[%clk 0:02:38.9]} 29... Qxc4 {[%clk 0:01:49.1]} 30. Rd2 {[%clk
0:02:03.9]} 30... Qg8 {[%clk 0:01:47.2]} 31. Rd3 {[%clk 0:01:37.3]} 31... Rxd3
{[%clk 0:01:17.1]} 32. Qxd3 {[%clk 0:01:37.2]} 32... Qd8 {[%clk 0:01:15.8]} 33.
Qc4 {[%clk 0:01:32.9]} 33... Qd7 {[%clk 0:01:12]} 34. a4 {[%clk 0:01:27.4]}
34... b5 {[%clk 0:01:06.1]} 35. axb5 {[%clk 0:01:23.6]} 35... cxb5 {[%clk
0:01:05.1]} 36. Qa2 {[%clk 0:01:19.7]} 36... Bc5 {[%clk 0:01:01]} 37. Kg3 {[%clk
0:01:07.8]} 37... g5 {[%clk 0:00:44.1]} 38. h4 {[%clk 0:01:00.2]} 38... g4
{[%clk 0:00:35.2]} 39. Nd2 {[%clk 0:00:48.1]} 39... h5 {[%clk 0:00:29.3]} 40.
Nb3 {[%clk 0:00:33.7]} 40... Bb6 {[%clk 0:00:25.2]} 41. Qc2 {[%clk 0:00:31]}
41... Kg6 {[%clk 0:00:16.5]} 42. Qe2 {[%clk 0:00:29.4]} 42... Qe6 {[%clk
0:00:12.5]} 43. Nd2 {[%clk 0:00:24.9]} 43... a6 {[%clk 0:00:10.4]} 44. Kh2
{[%clk 0:00:24]} 44... Qa2 {[%clk 0:00:04.9]} 45. Qd3 {[%clk 0:00:22.5]} 45...
Bxf2 {[%clk 0:00:00.7]} 46. c4 {[%clk 0:00:18.4]} 1-0

[Event "Live Chess"]
[Site "Chess.com"]
[Date "2023.05.20"]
[Round "-"]
[White "ProfPoisson"]
[Black "Goblinbasher"]
[Result "0-1"]
[WhiteElo "1128"]
[BlackElo "1240"]
[TimeControl "300"]
[EndTime "14:15:17 PDT"]
[Termination "Goblinbasher won by resignation"]

1. e4 {[%clk 0:04:58.1]} 1... c5 {[%clk 0:04:58.6]} 2. Nf3 {[%clk 0:04:54.7]}
2... e6 {[%clk 0:04:57.2]} 3. c3 {[%clk 0:04:51.2]} 3... d5 {[%clk 0:04:55.2]}
4. Bb5+ {[%clk 0:04:39.6]} 4... Nc6 {[%clk 0:04:52.9]} 5. exd5 {[%clk
0:04:36.3]} 5... exd5 {[%clk 0:04:51.3]} 6. O-O {[%clk 0:04:33.8]} 6... Be7
{[%clk 0:04:46.2]} 7. Ne5 {[%clk 0:04:29]} 7... Bd7 {[%clk 0:04:41.3]} 8. Qf3
{[%clk 0:04:25.3]} 8... Nf6 {[%clk 0:04:39]} 9. Nxd7 {[%clk 0:04:08.9]} 9...
Qxd7 {[%clk 0:04:32]} 10. d4 {[%clk 0:04:01.6]} 10... cxd4 {[%clk 0:04:26.9]}
11. cxd4 {[%clk 0:03:59]} 11... O-O {[%clk 0:04:18.7]} 12. Nc3 {[%clk
0:03:53.6]} 12... Nxd4 {[%clk 0:04:07.7]} 13. Qg3 {[%clk 0:03:46.8]} 13... Nxb5
{[%clk 0:04:01.6]} 14. Nxb5 {[%clk 0:03:43.8]} 14... Qxb5 {[%clk 0:03:59.6]} 15.
Bh6 {[%clk 0:03:42]} 15... g6 {[%clk 0:03:46.1]} 16. Bxf8 {[%clk 0:03:38]} 16...
Bxf8 {[%clk 0:03:45]} 17. h4 {[%clk 0:03:29.3]} 17... Nh5 {[%clk 0:03:38.6]} 18.
Qg5 {[%clk 0:03:24.9]} 18... Bg7 {[%clk 0:03:34.5]} 19. Rfe1 {[%clk 0:03:20.8]}
19... Qc6 {[%clk 0:03:11.9]} 20. Rac1 {[%clk 0:03:16.5]} 20... Qd6 {[%clk
0:03:03.9]} 21. Re7 {[%clk 0:03:08.9]} 21... Bf6 {[%clk 0:02:49.6]} 0-1

[Event "Live Chess"]
[Site "Chess.com"]
[Date "2023.05.20"]
[Round "-"]
[White "GMHarry-youtube"]
[Black "BostonStrangler"]
[Result "0-1"]
[WhiteElo "2051"]
[BlackElo "2070"]
[TimeControl "300"]
[EndTime "14:15:48 PDT"]
[Termination "BostonStrangler won by checkmate"]

1. e4 {[%clk 0:04:58.7]} 1... c5 {[%clk 0:04:58.1]} 2. Nf3 {[%clk 0:04:57.6]}
2... g6 {[%clk 0:04:57.7]} 3. c3 {[%clk 0:04:56.2]} 3... Nc6 {[%clk 0:04:55.7]}
4. d4 {[%clk 0:04:55.4]} 4... cxd4 {[%clk 0:04:54.8]} 5. cxd4 {[%clk 0:04:55.3]}
5... d5 {[%clk 0:04:53.8]} 6. e5 {[%clk 0:04:53.3]} 6... Bg4 {[%clk 0:04:51.8]}
7. Be2 {[%clk 0:04:52.1]} 7... e6 {[%clk 0:04:48.8]} 8. Ng1 {[%clk 0:04:50.8]}
8... Bxe2 {[%clk 0:04:47.1]} 9. Nxe2 {[%clk 0:04:50.7]} 9... Nge7 {[%clk
0:04:44.9]} 10. Bg5 {[%clk 0:04:48.4]} 10... Qb6 {[%clk 0:04:43.7]} 11. Qd2
{[%clk 0:04:46.8]} 11... Nf5 {[%clk 0:04:41.4]} 12. Be3 {[%clk 0:04:42.5]} 12...
Rc8 {[%clk 0:04:30.3]} 13. Nbc3 {[%clk 0:04:32.9]} 13... a6 {[%clk 0:04:13.3]}
14. g4 {[%clk 0:04:17.7]} 14... Nxe3 {[%clk 0:04:09.1]} 15. fxe3 {[%clk
0:04:14.9]} 15... Bh6 {[%clk 0:04:06.5]} 16. h4 {[%clk 0:04:13.7]} 16... Nxe5
{[%clk 0:04:01.4]} 17. dxe5 {[%clk 0:04:08.6]} 17... Bxe3 {[%clk 0:03:59.5]} 18.
Qd3 {[%clk 0:04:06.2]} 18... Bf2+ {[%clk 0:03:56.5]} 19. Kf1 {[%clk 0:04:03.7]}
19... Rc4 {[%clk 0:03:49.2]} 20. b3 {[%clk 0:03:51.7]} 20... Rxg4 {[%clk
0:03:45]} 21. Qf3 {[%clk 0:03:50.3]} 21... Bxh4 {[%clk 0:03:31.8]} 22. Na4
{[%clk 0:03:38.5]} 22... Qb4 {[%clk 0:03:23.2]} 23. Nac3 {[%clk 0:03:13.2]}
23... h5 {[%clk 0:02:56.9]} 24. Rc1 {[%clk 0:02:56.9]} 24... O-O {[%clk
0:02:50.6]} 25. Rg1 {[%clk 0:02:07.2]} 25... f6 {[%clk 0:02:41]} 26. Rxg4 {[%clk
0:01:59.8]} 26... hxg4 {[%clk 0:02:36.2]} 27. Qd3 {[%clk 0:01:38]} 27... fxe5+
{[%clk 0:02:25.3]} 28. Kg2 {[%clk 0:01:31.4]} 28... Rf2+ {[%clk 0:02:12.1]} 29.
Kg1 {[%clk 0:01:26.5]} 29... e4 {[%clk 0:02:10.8]} 30. Qe3 {[%clk 0:01:13.2]}
30... Qd6 {[%clk 0:02:03.7]} 31. Nf4 {[%clk 0:00:42]} 31... Rxf4 {[%clk
0:01:55.9]} 32. Ne2 {[%clk 0:00:36.5]} 32... Bf2+ {[%clk 0:01:52.1]} 33. Qxf2
{[%clk 0:00:34.3]} 33... Rxf2 {[%clk 0:01:50.7]} 34. Kxf2 {[%clk 0:00:33.7]}
34... Qh2+ {[%clk 0:01:48.8]} 35. Ke3 {[%clk 0:00:32.5]} 35... Qh3+ {[%clk
0:01:44.7]} 36. Kd2 {[%clk 0:00:28]} 36... Qd3+ {[%clk 0:01:43]} 37. Ke1 {[%clk
0:00:27.1]} 37... e3 {[%clk 0:01:32.5]} 38. Rc8+ {[%clk 0:00:18.1]} 38... Kg7
{[%clk 0:01:29.2]} 39. Rc7+ {[%clk 0:00:18]} 39... Kh6 {[%clk 0:01:27.2]} 40.
Rc1 {[%clk 0:00:17.9]} 40... Qe4 {[%clk 0:01:17.4]} 41. Ng3 {[%clk 0:00:11.4]}
41... Qg2 {[%clk 0:01:12.1]} 42. Nf1 {[%clk 0:00:08.9]} 42... Qf2+ {[%clk
0:01:09.4]} 43. Kd1 {[%clk 0:00:07.6]} 43... e2+ {[%clk 0:01:08.7]} 44. Kc2
{[%clk 0:00:04.8]} 44... exf1=Q+ {[%clk 0:01:07.3]} 45. Kb1 {[%clk 0:00:03.7]}
45... Qxc1+ {[%clk 0:01:05.7]} 46. Kxc1 {[%clk 0:00:03.4]} 46... g3 {[%clk
0:01:04.7]} 47. b4 {[%clk 0:00:02.5]} 47... g2 {[%clk 0:01:03.8]} 48. b5 {[%clk
0:00:02.4]} 48... g1=Q# {[%clk 0:01:03]} 0-1

[Event "Live Chess"]
[Site "Chess.com"]
[Date "2023.05.20"]
[Round "-"]
[White "defenderalist"]
[Black "bristolunichess"]
[Result "0-1"]
[WhiteElo "1615"]
[BlackElo "1822"]
[TimeControl "300"]
[EndTime "14:15:49 PDT"]
[Termination "bristolunichess won by resignation"]

1. e4 {[%clk 0:04:57.3]} 1... e5 {[%clk 0:04:54.3]} 2. f4 {[%clk 0:04:52.9]}
2... d5 {[%clk 0:04:51.4]} 3. exd5 {[%clk 0:04:47.4]} 3... e4 {[%clk 0:04:50.4]}
4. Nc3 {[%clk 0:04:45.3]} 4... Nf6 {[%clk 0:04:45.9]} 5. Bb5+ {[%clk 0:04:37.1]}
5... c6 {[%clk 0:04:44.6]} 6. dxc6 {[%clk 0:04:35.7]} 6... Nxc6 {[%clk
0:04:44.3]} 7. Nge2 {[%clk 0:04:30.9]} 7... Bc5 {[%clk 0:04:39.7]} 8. d4 {[%clk
0:04:23.8]} 8... exd3 {[%clk 0:04:32.9]} 9. Bxc6+ {[%clk 0:04:18.9]} 9... bxc6
{[%clk 0:04:24.1]} 10. Qxd3 {[%clk 0:04:17.3]} 10... Qb6 {[%clk 0:04:19.1]} 11.
Ne4 {[%clk 0:03:54.8]} 11... Qb4+ {[%clk 0:03:57.1]} 12. c3 {[%clk 0:03:46.7]}
12... Qxe4 {[%clk 0:03:51.3]} 0-1

[Event "Live Chess"]
[Site "Chess.com"]
[Date "2023.05.20"]
[Round "-"]
[White "SavagePawn7"]
[Black "BillW-GrangerIN"]
[Result "0-1"]
[WhiteElo "780"]
[BlackElo "369"]
[TimeControl "300"]
[EndTime "14:15:51 PDT"]
[Termination "BillW-GrangerIN won on time"]

1. e4 {[%clk 0:04:57]} 1... e6 {[%clk 0:04:54]} 2. d4 {[%clk 0:04:54.7]} 2... d5
{[%clk 0:04:51.8]} 3. c4 {[%clk 0:04:53.2]} 3... c5 {[%clk 0:04:47.5]} 4. exd5
{[%clk 0:04:45.6]} 4... exd5 {[%clk 0:04:42.9]} 5. dxc5 {[%clk 0:04:38.9]} 5...
Nc6 {[%clk 0:04:37.3]} 6. cxd5 {[%clk 0:04:33.3]} 6... Nb4 {[%clk 0:04:07.4]} 7.
Nc3 {[%clk 0:04:14.3]} 7... Bxc5 {[%clk 0:04:00.7]} 8. Bb5+ {[%clk 0:03:55.6]}
8... Bd7 {[%clk 0:03:46.3]} 9. Bxd7+ {[%clk 0:03:53.3]} 9... Qxd7 {[%clk
0:03:42.5]} 10. Be3 {[%clk 0:03:43.7]} 10... Rc8 {[%clk 0:03:29.5]} 11. Nf3
{[%clk 0:03:14.3]} 11... Nf6 {[%clk 0:03:23]} 12. O-O {[%clk 0:03:04.5]} 12...
O-O {[%clk 0:03:17.8]} 13. Ne5 {[%clk 0:02:58.1]} 13... Qd6 {[%clk 0:02:47.1]}
14. Qd2 {[%clk 0:02:09.7]} 14... Nbxd5 {[%clk 0:02:38.8]} 15. Nxd5 {[%clk
0:02:03.7]} 15... Nxd5 {[%clk 0:02:26.8]} 16. Bxc5 {[%clk 0:01:54.5]} 16... Qxc5
{[%clk 0:02:07.2]} 17. Rac1 {[%clk 0:01:39]} 17... Qb5 {[%clk 0:01:37]} 18. Rfd1
{[%clk 0:01:04]} 18... Rfe8 {[%clk 0:01:25]} 19. Rxc8 {[%clk 0:00:42.1]} 19...
Rxc8 {[%clk 0:01:18.3]} 20. Rc1 {[%clk 0:00:25.8]} 20... Re8 {[%clk 0:01:11.6]}
21. Qg5 {[%clk 0:00:14.7]} 21... Qc5 {[%clk 0:01:02.8]} 22. Qg4 {[%clk
0:00:09.4]} 22... Nf6 {[%clk 0:00:57.6]} 23. Rxc5 {[%clk 0:00:07.2]} 23... Rxe5
{[%clk 0:00:53.1]} 24. Qc8+ {[%clk 0:00:04.7]} 24... Ne8 {[%clk 0:00:47.7]} 25.
Rxe5 {[%clk 0:00:03.5]} 25... h6 {[%clk 0:00:43.3]} 26. Rxe8+ {[%clk 0:00:02.3]}
26... Kh7 {[%clk 0:00:41.7]} 27. Rh8+ {[%clk 0:00:00.9]} 27... Kg6 {[%clk
0:00:39.7]} 0-1

[Event "Live Chess"]
[Site "Chess.com"]
[Date "2023.05.20"]
[Round "-"]
[White "OSmith06"]
[Black "Greenbecker"]
[Result "1-0"]
[WhiteElo "1658"]
[BlackElo "1645"]
[TimeControl "300"]
[EndTime "14:15:51 PDT"]
[Termination "OSmith06 won by resignation"]

1. e4 {[%clk 0:04:58.8]} 1... e6 {[%clk 0:04:58.9]} 2. d4 {[%clk 0:04:57.3]}
2... d5 {[%clk 0:04:58]} 3. Nd2 {[%clk 0:04:56.8]} 3... dxe4 {[%clk 0:04:57]} 4.
Nxe4 {[%clk 0:04:56.7]} 4... Bd7 {[%clk 0:04:56.5]} 5. Nf3 {[%clk 0:04:54.4]}
5... Bc6 {[%clk 0:04:55.9]} 6. Bd3 {[%clk 0:04:51.7]} 6... Nd7 {[%clk 0:04:55]}
7. O-O {[%clk 0:04:49.3]} 7... Ngf6 {[%clk 0:04:54.5]} 8. Nxf6+ {[%clk
0:04:47.5]} 8... Nxf6 {[%clk 0:04:52.3]} 9. Re1 {[%clk 0:04:46.8]} 9... Bxf3
{[%clk 0:04:50.5]} 10. gxf3 {[%clk 0:04:39.2]} 10... c6 {[%clk 0:04:47.6]} 11.
Be4 {[%clk 0:04:36.2]} 11... Bd6 {[%clk 0:04:43.2]} 12. c3 {[%clk 0:04:28.6]}
12... Bc7 {[%clk 0:04:40.7]} 13. Bg5 {[%clk 0:04:25.2]} 13... Qd6 {[%clk
0:04:37.3]} 14. f4 {[%clk 0:04:16]} 14... h6 {[%clk 0:04:35.1]} 15. Bxf6 {[%clk
0:04:12.8]} 15... gxf6 {[%clk 0:04:33.4]} 16. Qf3 {[%clk 0:04:02.5]} 16... Rg8+
{[%clk 0:04:25.6]} 17. Kf1 {[%clk 0:03:59.1]} 17... Qxf4 {[%clk 0:04:21.4]} 18.
Bxc6+ {[%clk 0:03:52.6]} 18... bxc6 {[%clk 0:04:08.5]} 19. Qxc6+ {[%clk
0:03:52.5]} 19... Ke7 {[%clk 0:04:06.7]} 20. d5 {[%clk 0:03:32.3]} 20... Bb6
{[%clk 0:03:38.7]} 21. Qb7+ {[%clk 0:03:11.8]} 21... Bc7 {[%clk 0:03:31.7]} 22.
dxe6 {[%clk 0:03:00.1]} 22... Qc4+ {[%clk 0:03:15.7]} 23. Re2 {[%clk 0:02:52.6]}
23... fxe6 {[%clk 0:03:01.5]} 24. b3 {[%clk 0:02:47.7]} 24... Qf4 {[%clk
0:02:53.1]} 25. Rae1 {[%clk 0:02:27.9]} 25... e5 {[%clk 0:02:44.3]} 26. Qxc7+
{[%clk 0:02:22.8]} 26... Ke6 {[%clk 0:02:40.4]} 27. Qc6+ {[%clk 0:02:15.4]}
27... Kf7 {[%clk 0:02:37.5]} 28. Qd7+ {[%clk 0:02:11.5]} 28... Kg6 {[%clk
0:02:32.4]} 29. Re3 {[%clk 0:01:59.8]} 29... f5 {[%clk 0:01:22.2]} 30. Qe6+
{[%clk 0:01:41.8]} 30... Kh7 {[%clk 0:01:17.8]} 31. Qxe5 {[%clk 0:01:29.9]}
31... Qg4 {[%clk 0:01:13.1]} 32. Rg3 {[%clk 0:01:20.6]} 32... Qh4 {[%clk
0:01:11.7]} 33. Qxf5+ {[%clk 0:01:17.3]} 33... Kh8 {[%clk 0:01:08.8]} 34. Qe5+
{[%clk 0:01:12.5]} 34... Kh7 {[%clk 0:01:04.9]} 35. Qe7+ {[%clk 0:01:01.5]}
35... Qxe7 {[%clk 0:01:01.2]} 36. Rxe7+ {[%clk 0:01:01.4]} 36... Kh8 {[%clk
0:00:59.8]} 37. Rxg8+ {[%clk 0:00:57.2]} 37... Rxg8 {[%clk 0:00:57.3]} 38. Rxa7
{[%clk 0:00:55.3]} 38... Rc8 {[%clk 0:00:56.3]} 39. c4 {[%clk 0:00:53.3]} 39...
Rc6 {[%clk 0:00:55.3]} 40. a4 {[%clk 0:00:50.2]} 40... Rb6 {[%clk 0:00:53.4]}
41. c5 {[%clk 0:00:37.4]} 41... Rxb3 {[%clk 0:00:52.4]} 42. c6 {[%clk
0:00:36.1]} 42... Rc3 {[%clk 0:00:51.7]} 43. c7 {[%clk 0:00:35.1]} 43... Kg8
{[%clk 0:00:49.4]} 44. Ra8+ {[%clk 0:00:33]} 44... Kf7 {[%clk 0:00:48.7]} 45.
c8=Q {[%clk 0:00:31.7]} 45... Rxc8 {[%clk 0:00:47.8]} 46. Rxc8 {[%clk
0:00:31.6]} 1-0

[Event "Live Chess"]
[Site "Chess.com"]
[Date "2023.05.20"]
[Round "-"]
[White "MarkLim1"]
[Black "NatashaRegan"]
[Result "1-0"]
[WhiteElo "1665"]
[BlackElo "1744"]
[TimeControl "300"]
[EndTime "14:15:58 PDT"]
[Termination "MarkLim1 won on time"]

1. d4 {[%clk 0:04:59.6]} 1... c5 {[%clk 0:04:53.9]} 2. d5 {[%clk 0:04:58.5]}
2... e6 {[%clk 0:04:52.2]} 3. Nc3 {[%clk 0:04:57.6]} 3... Nf6 {[%clk 0:04:47.4]}
4. e4 {[%clk 0:04:55.3]} 4... d6 {[%clk 0:04:36.1]} 5. Nf3 {[%clk 0:04:51.3]}
5... a6 {[%clk 0:04:33.1]} 6. a4 {[%clk 0:04:50]} 6... Be7 {[%clk 0:04:31.8]} 7.
Be2 {[%clk 0:04:49.1]} 7... O-O {[%clk 0:04:28.8]} 8. O-O {[%clk 0:04:47.9]}
8... exd5 {[%clk 0:04:24]} 9. exd5 {[%clk 0:04:46.8]} 9... Bg4 {[%clk 0:04:21]}
10. Nd2 {[%clk 0:04:44.2]} 10... Bf5 {[%clk 0:04:11.2]} 11. Nc4 {[%clk
0:04:38.9]} 11... Nbd7 {[%clk 0:04:01]} 12. a5 {[%clk 0:04:36.3]} 12... Rb8
{[%clk 0:03:57.7]} 13. b3 {[%clk 0:04:33.1]} 13... b5 {[%clk 0:03:53.6]} 14.
axb6 {[%clk 0:04:31.5]} 14... Nxb6 {[%clk 0:03:52.3]} 15. Nxb6 {[%clk
0:04:25.8]} 15... Rxb6 {[%clk 0:03:49.4]} 16. Rxa6 {[%clk 0:04:24.3]} 16... Rxa6
{[%clk 0:03:44.9]} 17. Bxa6 {[%clk 0:04:23.4]} 17... Qa5 {[%clk 0:03:43.7]} 18.
Bd3 {[%clk 0:04:17.6]} 18... Bg4 {[%clk 0:03:31.5]} 19. Qd2 {[%clk 0:04:06.3]}
19... h6 {[%clk 0:03:12.2]} 20. Ne4 {[%clk 0:03:54.9]} 20... Qxd2 {[%clk
0:03:04.6]} 21. Bxd2 {[%clk 0:03:49.8]} 21... Nxd5 {[%clk 0:03:01.9]} 22. f3
{[%clk 0:03:42.9]} 22... Be6 {[%clk 0:02:54.4]} 23. Ra1 {[%clk 0:03:36.4]} 23...
Rc8 {[%clk 0:02:28.7]} 24. Ra6 {[%clk 0:03:32.3]} 24... Rd8 {[%clk 0:01:56.5]}
25. Ba5 {[%clk 0:03:24]} 25... Rd7 {[%clk 0:01:55]} 26. c4 {[%clk 0:03:10.1]}
26... Nf4 {[%clk 0:01:51.5]} 27. Bc2 {[%clk 0:03:02.2]} 27... d5 {[%clk
0:01:42.7]} 28. cxd5 {[%clk 0:02:49.2]} 28... Bxd5 {[%clk 0:01:39.8]} 29. Nc3
{[%clk 0:02:46.8]} 29... Bb7 {[%clk 0:01:31]} 30. Ra7 {[%clk 0:02:32.6]} 30...
Bf6 {[%clk 0:01:28.5]} 31. Ne4 {[%clk 0:02:24.8]} 31... Bd4+ {[%clk 0:01:23.5]}
32. Kf1 {[%clk 0:02:20]} 32... Bxe4 {[%clk 0:01:14.5]} 33. Rxd7 {[%clk 0:02:16]}
33... Bxc2 {[%clk 0:01:12.4]} 34. b4 {[%clk 0:02:07.3]} 34... Bd3+ {[%clk
0:01:04.8]} 35. Ke1 {[%clk 0:01:59.4]} 35... Bc3+ {[%clk 0:01:02.5]} 36. Kd1
{[%clk 0:01:56.6]} 36... cxb4 {[%clk 0:00:58.8]} 37. Rd8+ {[%clk 0:01:47.7]}
37... Kh7 {[%clk 0:00:54.7]} 38. Rb8 {[%clk 0:01:47.2]} 38... Nxg2 {[%clk
0:00:38.8]} 39. Bxb4 {[%clk 0:01:44]} 39... Ne3+ {[%clk 0:00:33.4]} 40. Kc1
{[%clk 0:01:37.8]} 40... Bxb4 {[%clk 0:00:23.5]} 41. Rxb4 {[%clk 0:01:36]} 41...
Bf5 {[%clk 0:00:19.1]} 42. Kd2 {[%clk 0:01:30.8]} 42... Nd5 {[%clk 0:00:17.6]}
43. Rd4 {[%clk 0:01:27.9]} 43... Be6 {[%clk 0:00:16.7]} 44. Ke1 {[%clk 0:01:22]}
44... Kg6 {[%clk 0:00:15.8]} 45. Kf2 {[%clk 0:01:21]} 45... Kf5 {[%clk
0:00:14.6]} 46. Ra4 {[%clk 0:01:18.2]} 46... g5 {[%clk 0:00:13.8]} 47. Ra8
{[%clk 0:01:14.8]} 47... f6 {[%clk 0:00:13]} 48. Rh8 {[%clk 0:01:13.3]} 48...
Kg6 {[%clk 0:00:11.4]} 49. Re8 {[%clk 0:01:11.7]} 49... Bd7 {[%clk 0:00:09.6]}
50. Rd8 {[%clk 0:01:10.6]} 50... Nb6 {[%clk 0:00:08.7]} 51. Rb8 {[%clk
0:01:09.1]} 51... Nd5 {[%clk 0:00:07.6]} 52. Rb7 {[%clk 0:01:06.4]} 52... Be6
{[%clk 0:00:06.1]} 53. Rb5 {[%clk 0:01:03.7]} 53... Nf4 {[%clk 0:00:04.8]} 54.
Rb8 {[%clk 0:01:00.9]} 54... Nh3+ {[%clk 0:00:02]} 55. Ke1 {[%clk 0:00:57.7]}
55... Kf5 {[%clk 0:00:00.9]} 56. Rb5+ {[%clk 0:00:56.3]} 1-0

[Event "Live Chess"]
[Site "Chess.com"]
[Date "2023.05.20"]
[Round "-"]
[White "ViktorTheCoolBoy"]
[Black "HoarseyHorsey"]
[Result "1-0"]
[WhiteElo "2510"]
[BlackElo "1412"]
[TimeControl "300"]
[EndTime "14:16:02 PDT"]
[Termination "ViktorTheCoolBoy won by resignation"]

1. d4 {[%clk 0:04:58.6]} 1... Nf6 {[%clk 0:04:57.8]} 2. c4 {[%clk 0:04:55.8]}
2... e6 {[%clk 0:04:56.6]} 3. Nc3 {[%clk 0:04:53.5]} 3... d5 {[%clk 0:04:55.7]}
4. cxd5 {[%clk 0:04:51.5]} 4... exd5 {[%clk 0:04:55]} 5. Bg5 {[%clk 0:04:50.5]}
5... Bb4 {[%clk 0:04:53.3]} 6. e3 {[%clk 0:04:48.3]} 6... c6 {[%clk 0:04:52.2]}
7. Nf3 {[%clk 0:04:46.7]} 7... Bg4 {[%clk 0:04:51]} 8. Be2 {[%clk 0:04:40.9]}
8... O-O {[%clk 0:04:49.6]} 9. Kf1 {[%clk 0:04:34.7]} 9... Nbd7 {[%clk
0:04:47.8]} 10. h3 {[%clk 0:04:33.4]} 10... Bh5 {[%clk 0:04:46.1]} 11. g4 {[%clk
0:04:32.6]} 11... Bg6 {[%clk 0:04:44.9]} 12. Kg2 {[%clk 0:04:31.1]} 12... Bxc3
{[%clk 0:04:42.5]} 13. bxc3 {[%clk 0:04:29.7]} 13... Be4 {[%clk 0:04:41.7]} 14.
Bd3 {[%clk 0:04:24.9]} 14... Qe8 {[%clk 0:04:37.6]} 15. Bxe4 {[%clk 0:04:22.9]}
15... Nxe4 {[%clk 0:04:36.6]} 16. Bf4 {[%clk 0:04:21.6]} 16... Ndf6 {[%clk
0:04:34.9]} 17. Qc2 {[%clk 0:04:16.6]} 17... Nd7 {[%clk 0:04:17.7]} 18. c4
{[%clk 0:04:14.2]} 18... f5 {[%clk 0:04:16.3]} 19. g5 {[%clk 0:04:13.5]} 19...
Qh5 {[%clk 0:04:09.9]} 20. cxd5 {[%clk 0:04:09.8]} 20... cxd5 {[%clk 0:04:08.6]}
21. Qb3 {[%clk 0:04:05.9]} 21... Nb6 {[%clk 0:04:03.1]} 22. Rac1 {[%clk
0:04:04.1]} 22... Rac8 {[%clk 0:04:00.4]} 23. Ne5 {[%clk 0:04:00]} 23... Nxg5
{[%clk 0:03:49.7]} 24. Qd1 {[%clk 0:03:55.9]} 24... Qxd1 {[%clk 0:03:41.8]} 25.
Rhxd1 {[%clk 0:03:54.6]} 25... Ne4 {[%clk 0:03:38.1]} 26. f3 {[%clk 0:03:49.7]}
26... Nf6 {[%clk 0:03:35.5]} 27. Rc5 {[%clk 0:03:46.7]} 27... Rxc5 {[%clk
0:03:32]} 28. dxc5 {[%clk 0:03:45.5]} 28... Nbd7 {[%clk 0:03:25.3]} 29. Nxd7
{[%clk 0:03:44.6]} 29... Nxd7 {[%clk 0:03:24.1]} 30. Rxd5 {[%clk 0:03:44.2]}
30... Nf6 {[%clk 0:03:14]} 31. Rxf5 {[%clk 0:03:42.2]} 31... Rd8 {[%clk
0:03:09]} 32. e4 {[%clk 0:03:38.6]} 32... Rd3 {[%clk 0:03:01.1]} 33. Bg5 {[%clk
0:03:33.6]} 33... Kf7 {[%clk 0:02:56.6]} 34. Bxf6 {[%clk 0:03:32.5]} 34... gxf6
{[%clk 0:02:55.7]} 35. Rd5 {[%clk 0:03:32.2]} 35... Rc3 {[%clk 0:02:52.8]} 36.
Rd7+ {[%clk 0:03:31.1]} 36... Ke6 {[%clk 0:02:51.5]} 37. Rxb7 {[%clk 0:03:30.7]}
37... Rxc5 {[%clk 0:02:50.8]} 38. Rxa7 {[%clk 0:03:28.4]} 38... Rc2+ {[%clk
0:02:45.1]} 39. Kg3 {[%clk 0:03:27.1]} 39... Rc5 {[%clk 0:02:42.8]} 40. Rxh7
{[%clk 0:03:25.1]} 40... Rg5+ {[%clk 0:02:41.5]} 41. Kf4 {[%clk 0:03:23.6]}
41... Ra5 {[%clk 0:02:40.4]} 42. h4 {[%clk 0:03:21.3]} 42... Rxa2 {[%clk
0:02:39.4]} 43. h5 {[%clk 0:03:20.5]} 43... Rh2 {[%clk 0:02:38.4]} 44. h6 {[%clk
0:03:16.1]} 44... Rh1 {[%clk 0:02:36]} 45. Rh8 {[%clk 0:03:14.7]} 45... Rh5
{[%clk 0:02:34.4]} 46. Kg4 {[%clk 0:03:12.9]} 46... Rh1 {[%clk 0:02:32.6]} 47.
f4 {[%clk 0:03:10.9]} 47... Rg1+ {[%clk 0:02:30.7]} 48. Kf3 {[%clk 0:03:09.4]}
48... Rh1 {[%clk 0:02:29.4]} 49. h7 {[%clk 0:03:08]} 49... Rh5 {[%clk 0:02:15]}
50. Re8+ {[%clk 0:03:05.9]} 50... Kf7 {[%clk 0:02:11.7]} 51. h8=Q {[%clk
0:03:04.9]} 1-0